fUSD/lending_fUSD_20260112
["ID","MTS","AMOUNT","RATE_DAILY","PERIOD"]
[401458424,1768237849528,-1238.431747,0.00017973,2]
[401458425,1768237849538,-1238.431747,0.00017973,2]
[401458426,1768237849547,-1238.431747,0.00017973,2]
[401458427,1768237849556,-169.800475,0.00017973,2]
[401458428,1768237849566,-1238.431747,0.00017973,2]
[401458429,1768237849577,-151.0,0.00017973,2]
[401458430,1768237849588,-699.466395,0.00017973,2]
[401458431,1768237849597,-699.466395,0.00017973,2]
[401458432,1768237849607,-699.466395,0.00017973,2]
[401458433,1768237849617,-699.466395,0.00017973,2]
[401458434,1768237849626,-3507.772819,0.00017973,2]
[401458435,1768237849635,-3507.772819,0.00017973,2]
[401458436,1768237849644,-3507.772819,0.00017973,2]
[401458437,1768237849654,-3507.772819,0.00017973,2]
[401458438,1768237849663,-212.492116,0.00017973,2]
[401458439,1768237849673,-212.492116,0.00017973,2]
[401458440,1768237849682,-949.908812,0.00017973,2]
[401458441,1768237849692,-2315.94614,0.00017973,2]
[401458442,1768237849702,-212.492116,0.00017973,2]
[401458443,1768237849711,-949.908812,0.00017973,2]
[401458444,1768237849721,-151.0,0.00017973,2]
[401458445,1768237849731,-2315.94614,0.00017973,2]
[401458446,1768237849741,-212.492116,0.00017973,2]
[401458447,1768237849750,-949.908812,0.00017973,2]
[401458448,1768237849759,-2315.94614,0.00017973,2]
[401458449,1768237849769,-949.908812,0.00017973,2]
[401458450,1768237849778,-2315.94614,0.00017973,2]
[401458451,1768237849788,-440.919773,0.00017973,2]
[401458452,1768237849797,-440.919773,0.00017973,2]
[401458453,1768237849807,-260.919522,0.00017973,2]
[401458454,1768237849816,-440.919773,0.00017973,2]
[401458455,1768237849826,-260.919522,0.00017973,2]
[401458456,1768237849836,-151.0,0.00017973,2]
[401458457,1768237849845,-440.919773,0.00017973,2]
[401458458,1768237849855,-260.919522,0.00017973,2]
[401458459,1768237849864,-151.0,0.00017973,2]
[401458460,1768237849873,-260.919522,0.00017973,2]
[401458461,1768237849883,-151.0,0.00017973,2]
[401458462,1768237849893,-6747.030351,0.00017973,2]
[401458463,1768237849903,-6747.030351,0.00017973,2]
[401458464,1768237849913,-6747.030351,0.00017973,2]
[401458465,1768237849923,-151.0,0.00017973,2]
[401458466,1768237849933,-6747.030351,0.00017973,2]
[401458467,1768237849942,-4268.298126,0.00017973,2]
[401458468,1768237849952,-193.4694691,0.00017973,2]
[401458469,1768237849962,-4268.298126,0.00017973,2]
[401458470,1768237849971,-4268.298126,0.00017973,2]
[401458471,1768237849981,-4268.298126,0.00017973,2]
[401458472,1768237849991,-468.542458,0.00017973,2]
[401458473,1768237850002,-468.542458,0.00017973,2]
[401458474,1768237850011,-468.542458,0.00017973,2]
[401458475,1768237850021,-468.542458,0.00017973,2]
[401458476,1768237850031,-1455.745112,0.00017973,2]
[401458477,1768237850040,-1455.745112,0.00017973,2]
[401458478,1768237850049,-1455.745112,0.00017973,2]
[401458479,1768237850059,-1455.745112,0.00017973,2]
[401458480,1768237850069,-248.59389289,0.0001799,2]
[401458481,1768237850079,-248.59389289,0.0001799,2]
[401458482,1768237850088,-151.0,0.00017997,2]
[401458483,1768237850097,-151.0,0.00017997,2]
[401458484,1768237850107,-151.0,0.00017997,2]
[401458485,1768237850117,-174.669462,0.00017997,2]
[401458486,1768237850126,-151.0,0.00017998,2]
[401458487,1768237850135,-174.004674,0.00017998,2]
[401458488,1768237850145,-151.0,0.00017998,2]
[401458489,1768237850155,-151.0,0.00017998,2]
[401458490,1768237850165,-151.0,0.00017998,2]
[401458491,1768237850174,-218.683607,0.00017998,2]
[401458492,1768237850183,-151.0,0.00017998,2]
[401458493,1768237850192,-151.0,0.00017998,2]
[401458494,1768237850202,-151.0,0.00017998,2]
[401458495,1768237850211,-151.0,0.00017998,2]
[401458496,1768237850221,-151.0,0.00017998,2]
[401458497,1768237850230,-151.0,0.00017998,2]
[401458498,1768237850239,-151.0,0.00017998,2]
[401458499,1768237850249,-151.0,0.00017998,2]
[401458500,1768237850258,-151.0,0.00017998,2]
[401458501,1768237850268,-162.966682,0.00017998,2]
[401458502,1768237850277,-151.0,0.00017998,2]
[401458503,1768237850287,-151.0,0.00017998,2]
[401458504,1768237850296,-151.0,0.00017998,2]
[401458505,1768237850305,-203.639295,0.00017998,2]
[401458506,1768237850315,-151.0,0.00017998,2]
[401458507,1768237850326,-188.649996,0.00017998,2]
[401458508,1768237850335,-151.0,0.00017998,2]
[401458509,1768237850345,-265.669936,0.00017998,2]
[401458510,1768237850354,-151.0,0.00017998,2]
[401458511,1768237850364,-151.0,0.00017998,2]
[401458512,1768237850374,-151.0,0.00017998,2]
[401458513,1768237850383,-151.0,0.00017998,2]
[401458514,1768237850393,-151.0,0.00017998,2]
[401458515,1768237850404,-151.0,0.00017998,2]
[401458516,1768237850418,-155.86299,0.00017998,2]
[401458517,1768237850431,-151.0,0.00017998,2]
[401458518,1768237850443,-290.778857,0.00017998,2]
[401458519,1768237850455,-290.778857,0.00017998,2]
[401458520,1768237850467,-151.0,0.00017998,2]
[401458521,1768237850478,-290.778857,0.00017998,2]
[401458522,1768237850489,-290.778857,0.00017998,2]
[401458523,1768237850503,-151.0,0.00017998,2]
[401458524,1768237850520,-271.712617,0.00017998,2]
[401458525,1768237850536,-1455.235658,0.00017998,2]
[401458526,1768237850548,-271.712617,0.00017998,2]
[401458527,1768237850558,-1455.235658,0.00017998,2]
[401458528,1768237850573,-271.712617,0.00017998,2]
[401458529,1768237850588,-1455.235658,0.00017998,2]
[401458530,1768237850605,-271.712617,0.00017998,2]
[401458531,1768237850617,-1455.235658,0.00017998,2]
[401458532,1768237850630,-865.67722,0.00017998,2]
[401458533,1768237850645,-865.67722,0.00017998,2]
[401458534,1768237850658,-195.307106,0.00017998,2]
[401458535,1768237850671,-865.67722,0.00017998,2]
[401458536,1768237850684,-195.307106,0.00017998,2]
[401458537,1768237850695,-865.67722,0.00017998,2]
[401458538,1768237850705,-195.307106,0.00017998,2]
[401458539,1768237850714,-195.307106,0.00017998,2]
[401458540,1768237850724,-151.0,0.00017998,2]
[401458541,1768237850733,-151.0,0.00017998,2]
[401458542,1768237850743,-154.580471,0.00017998,2]
[401458543,1768237850753,-169.745895,0.00017998,2]
[401458544,1768237850763,-151.0,0.00017998,2]
[401458545,1768237850772,-151.0,0.00017998,2]
[401458546,1768237850782,-151.0,0.00017998,2]
[401458547,1768237850791,-151.0,0.00017998,2]
[401458548,1768237850800,-151.0,0.00017998,2]
[401458549,1768237850810,-151.0,0.00017998,2]
[401458550,1768237850820,-151.0,0.00017998,2]
[401458551,1768237850830,-151.0,0.00017998,2]
[401458552,1768237850839,-151.0,0.00017998,2]
[401458553,1768237850848,-151.0,0.00017998,2]
[401458554,1768237850858,-151.0,0.00017998,2]
[401458555,1768237850867,-207.224269,0.00017998,2]
[401458556,1768237850876,-207.224269,0.00017998,2]
[401458557,1768237850886,-151.0,0.00017998,2]
[401458558,1768237850895,-207.224269,0.00017998,2]
[401458559,1768237850904,-151.0,0.00017998,2]
[401458560,1768237850914,-207.224269,0.00017998,2]
[401458561,1768237850923,-865.383182,0.00017998,2]
[401458562,1768237850933,-865.383182,0.00017998,2]
[401458563,1768237850942,-865.383182,0.00017998,2]
[401458564,1768237850952,-865.383182,0.00017998,2]
[401458565,1768237850962,-151.0,0.00017998,2]
[401458566,1768237850971,-260.1011,0.00017998,2]
[401458567,1768237850980,-260.1011,0.00017998,2]
[401458568,1768237850990,-260.1011,0.00017998,2]
[401458569,1768237850999,-260.1011,0.00017998,2]
[401458570,1768237851009,-1006.8454,0.00017999,2]
[401458571,1768237851019,-300.0,0.00017999,2]
[401458572,1768237851028,-300.0,0.00017999,2]
[401458573,1768237851037,-230.93569906,0.00017999,2]
[401458574,1768237851047,-553.74,0.00017999,2]
[401458575,1768237851057,-553.74,0.00017999,2]
[401458576,1768237851067,-553.74,0.00017999,2]
[401458577,1768237851077,-553.74,0.00017999,2]
[401458578,1768237851087,-553.74,0.00017999,2]
[401458579,1768237851096,-553.74,0.00017999,2]
[401458580,1768237851106,-553.74,0.00017999,2]
[401458581,1768237851116,-553.74,0.00017999,2]
[401458582,1768237851126,-553.74,0.00017999,2]
[401458583,1768237851135,-553.74,0.00017999,2]
[401458584,1768237851145,-553.87,0.00017999,2]
[401458585,1768237851155,-57540.968926,0.00018,2]
[401458586,1768237851166,-177.09182857,0.00018,2]
[401458587,1768237851176,-150.0,0.00018,2]
[401458588,1768237851185,-150.0,0.00018,2]
[401458589,1768237851195,-150.0,0.00018,2]
[401458590,1768237851205,-225.87096,0.00018,2]
[401458591,1768237851215,-150.00000001,0.00018,2]
[401458592,1768237851225,-150.0,0.00018,2]
[401458593,1768237851234,-150.0,0.00018,2]
[401458594,1768237851243,-150.0,0.00018,2]
[401458595,1768237851252,-150.0,0.00018,2]
[401458596,1768237851262,-150.0,0.00018,2]
[401458597,1768237851271,-472066.42918516,0.00018,2]
[401458598,1768237852101,-398.2466388,0.000179,2]
[401458599,1768237852111,-357.62163737,0.000179,2]
[401458600,1768237852121,-8304.93172383,0.00018,2]
[401458601,1768237852133,-1359.48,0.00018,2]
[401458602,1768237852145,-8485.45399929,0.00018,2]
[401458603,1768237852157,-4247.0,0.00018,2]
[401458604,1768237852168,-566.33804769,0.00018,2]
[401458605,1768237852452,-151.0,0.00016051,2]
[401458606,1768237852465,-3046.76139311,0.000179,2]
[401458607,1768237852476,-369900.70586231,0.00018,2]
[401458608,1768237852786,-896.40048787,0.00015923,2]
[401458609,1768237852798,-6556.0,0.0001772,2]
[401458610,1768237852809,-357.62163737,0.000179,2]
[401458611,1768237852819,-174929.67077755,0.00018,2]
[401458612,1768237852835,-294614.66580326,0.00018,2]
[401458613,1768237852905,-10943.67565855,0.00018,2]
[401458615,1768238167909,210.0,9.989e-05,2]
[401458616,1768238168277,210.0,9.989e-05,2]
[401458617,1768238168582,210.0,9.989e-05,2]
[401458618,1768238168879,210.0,9.989e-05,2]
[401458619,1768238169182,210.0,9.989e-05,2]
[401458622,1768238639913,396.46,0.00011357,2]
[401458623,1768238640320,396.46,0.00011546,2]
[401458624,1768238640563,396.46,0.00011734,2]
[401458625,1768238644964,-192.25646779,0.00011923,2]
[401458626,1768238647353,-204.20353221,0.00011923,2]
[401458627,1768238647378,-71.53108194,0.00012112,2]
[401458628,1768238648850,-250.0,0.00012018,2]
[401458629,1768238648873,-50.0,0.00012112,2]
[401458631,1768238830125,205.0,9.8e-05,2]
[401458633,1768238833602,259.5777637,0.000101,2]
[401458639,1768238915301,3293.5469993,0.0001,2]
[401458640,1768238915324,10000.01,0.0001,2]
[401458641,1768238915347,5165.18822069,0.0001,2]
[401458642,1768238951261,-274.92891806,0.00012112,2]
[401458643,1768238951284,-396.46,0.00012301,2]
[401458644,1768238951307,-396.46,0.0001249,2]
[401458645,1768238951329,-307.19022132,0.000125,2]
[401458646,1768238951350,-396.46,0.00012678,2]
[401458647,1768238951373,-396.46,0.00012867,2]
[401458648,1768238951395,-448.97430059,0.0001305,2]
[401458649,1768238951417,-396.46,0.00013056,2]
[401458650,1768238951439,-250.0,0.00013116,2]
[401458651,1768238951460,-396.46,0.00013245,2]
[401458652,1768238951482,-169.94,0.0001326,2]
[401458653,1768238951506,-165.76188916,0.0001326,2]
[401458654,1768238951527,-283.22267591,0.00013323,2]
[401458655,1768238951548,-300.0,0.00013323,2]
[401458656,1768238951568,-193.0,0.00013323,2]
[401458657,1768238951590,-300.0,0.00013323,2]
[401458658,1768238951615,-396.46,0.00013433,2]
[401458659,1768238951636,-787.25604664,0.000135,2]
[401458660,1768238951658,-396.46,0.00013622,2]
[401458661,1768238951679,-450.0,0.00013644,2]
[401458662,1768238951700,-396.46,0.00013811,2]
[401458663,1768238951723,-303.96,0.00013988,2]
[401458664,1768238951744,-300.0,0.00013999,2]
[401458665,1768238951766,-396.46,0.00014,2]
[401458666,1768238951788,-5041.92423814,0.00014,2]
[401458667,1768238951812,-998.13686081,0.00014,2]
[401458668,1768238951832,-189.76,0.0001402,2]
[401458669,1768238951856,-396.46,0.00014188,2]
[401458670,1768238951878,-202.96,0.00014242,2]
[401458671,1768238951898,-396.46,0.00014377,2]
[401458672,1768238951925,-604.12542618,0.00014389,2]
[401458673,1768238951945,-3725.38333766,0.0001439,2]
[401458674,1768238951966,-396.46,0.00014566,2]
[401458675,1768238951987,-1200.0,0.00014584,2]
[401458676,1768238952010,-150.0,0.00014584,2]
[401458677,1768238952031,-275.91,0.00014708,2]
[401458678,1768238952051,-396.46,0.00014755,2]
[401458679,1768238952072,-396.46,0.00014944,2]
[401458680,1768238952093,-1963.34171095,0.00015,2]
[401458681,1768238952113,-4466.81062655,0.00015,2]
[401458682,1768238957096,-500.0,0.00014882,2]
[401458683,1768238957118,-4889.760782,0.00015,2]
[401458686,1768239030967,-300.0,0.00014999,2]
[401458687,1768239030992,-1200.0,0.00014999,2]
[401458688,1768239031016,-150.0,0.00014999,2]
[401458689,1768239031040,-274.0,0.00014999,2]
[401458690,1768239031065,-195.0,0.00015,2]
[401458698,1768239031531,-459.25366329,0.00015,2]
[401458700,1768239031543,-325.12118884,0.00015,2]
[401458701,1768239031552,-913.09369568,0.00015,2]
[401458702,1768239031586,-1349.61288932,0.00015,2]
[401458703,1768239031647,-1422.63899574,0.00015,2]
[401458704,1768239031662,-426.83436047,0.00015,2]
[401458705,1768239031700,-1863.64,0.00015,2]
[401458706,1768239031713,-27700.54119838,0.00015,2]
[401458707,1768239031723,-600.0,0.00015034,2]
[401458708,1768239031733,-654.31,0.00015068,2]
[401458709,1768239031744,-600.0,0.00015095,2]
[401458710,1768239031754,-500.0,0.00015123,2]
[401458711,1768239031764,-3240.0,0.00015126,2]
[401458712,1768239031775,-1596.1,0.00015181,2]
[401458713,1768239031787,-1000.0,0.00015236,2]
[401458714,1768239031796,-340.36737719,0.00015319,2]
[401458715,1768239031805,-485.14545724,0.00015319,2]
[401458716,1768239031815,-500.0,0.00015319,2]
[401458718,1768239031827,-340.09818393,0.00015319,2]
[401458719,1768239031837,-558.17398486,0.00015319,2]
[401458720,1768239031847,-500.0,0.00015319,2]
[401458722,1768239031857,-1802.52172419,0.0001532,2]
[401458723,1768239031869,-285.90524956,0.0001532,2]
[401458724,1768239031889,-782.76857672,0.0001532,2]
[401458725,1768239031901,-4201.65523545,0.0001532,2]
[401458726,1768239031924,-892.01571807,0.0001532,2]
[401458800,1768239038250,-435.5742978,0.0001532,2]
[401458802,1768239038262,-2901.15673812,0.0001532,2]
[401458804,1768239038274,-2482.78982302,0.0001532,2]
[401458806,1768239038285,-1277.47552232,0.0001532,2]
[401458809,1768239038297,-5827.20769248,0.0001532,2]
[401458811,1768239038309,-13676.03543526,0.0001532,2]
[401458813,1768239038320,-77821.05527204,0.0001532,2]
[401458815,1768239038330,-8338.6873321,0.00015475,2]
[401458817,1768239038339,-1000.0,0.00015575,2]
[401458819,1768239038351,-166.66,0.00015674,2]
[401458821,1768239038361,-150.99,0.00015674,2]
[401458823,1768239038370,-999.99,0.00015674,2]
[401458825,1768239038381,-2649.93,0.00015674,2]
[401458827,1768239038390,-9999.99,0.00015674,2]
[401458829,1768239038399,-3689.33,0.00015674,2]
[401458831,1768239038409,-5445.96,0.00015674,2]
[401458833,1768239038419,-2841.9,0.00015674,2]
[401458835,1768239038428,-13971.08,0.00015674,2]
[401458837,1768239038438,-150.99,0.00015674,2]
[401458839,1768239038447,-754.07724013,0.000157,2]
[401458841,1768239038458,-150.0,0.00015713,2]
[401458843,1768239038469,-303.96,0.00015736,2]
[401458845,1768239038478,-8338.68733204,0.00015744,2]
[401458847,1768239038488,-184.61083841,0.00015767,2]
[401458849,1768239038498,-427.6846504,0.00015767,2]
[401458850,1768239038508,-151.0,0.00015767,2]
[401458852,1768239038519,-151.0,0.00015767,2]
[401458854,1768239038528,-289.48156187,0.00015767,2]
[401458856,1768239038538,-2015.86701703,0.00015779,2]
[401458859,1768239038548,-500.0,0.00015781,2]
[401458861,1768239038559,-248.59389289,0.0001579,2]
[401458863,1768239038568,-500.0,0.00015791,2]
[401458865,1768239038577,-151.0,0.00015797,2]
[401458867,1768239038587,-273.92712955,0.00015798,2]
[401458868,1768239038600,-604.41169529,0.00015798,2]
[401458869,1768239038614,-400.0,0.000158,5]
[401458870,1768239038626,-328306.77669108,0.000158,2]
[401458871,1768239038638,-494285.93058762,0.000158,2]
[401458872,1768239038651,-5778.20325848,0.000158,2]
[401458873,1768239038664,-171629.08946282,0.000158,2]
[401458874,1768239038674,-150.0,0.000158,2]
[401458875,1768239038686,-754.07724012,0.000158,2]
[401458876,1768239038698,-250.0,0.0001582,2]
[401458877,1768239038709,-151.0,0.00015873,2]
[401458878,1768239038719,-151.0,0.00015873,2]
[401458879,1768239038728,-151.0,0.00015874,2]
[401458880,1768239038738,-151.0,0.00015874,2]
[401458881,1768239038748,-151.0,0.00015893,2]
[401458882,1768239038757,-151.0,0.00015893,2]
[401458883,1768239038767,-151.0,0.00015895,2]
[401458884,1768239038776,-2324.54681208,0.00015898,2]
[401458885,1768239038786,-1356.4829,0.00015898,2]
[401458886,1768239038795,-151.0,0.00015899,2]
[401458887,1768239038805,-151.0,0.00015899,2]
[401458888,1768239038816,-1967.384,0.000159,2]
[401458889,1768239038825,-161.798,0.000159,2]
[401458890,1768239038836,-800.0,0.000159,5]
[401458891,1768239038847,-16872.1021704,0.000159,2]
[401458892,1768239038857,-500.0,0.000159,2]
[401458893,1768239038868,-754.07724012,0.000159,2]
[401458894,1768239038879,-500.0,0.00015997,2]
[401458895,1768239038890,-526.37134529,0.00015997,2]
[401458896,1768239038900,-500.0,0.00015997,2]
[401458897,1768239038911,-9432.60016094,0.00016,2]
[401458898,1768239038921,-428239.34731723,0.00016,4]
[401458899,1768239038933,-150.0,0.00016,2]
[401458900,1768239038944,-166.66,0.00016004,2]
[401458901,1768239038954,-8338.68733204,0.00016014,2]
[401458902,1768239038965,-1000.0,0.00016042,2]
[401458903,1768239038975,-500.0,0.00016097,2]
[401458904,1768239038985,-500.0,0.00016097,2]
[401458905,1768239038995,-500.0,0.00016097,2]
[401458906,1768239039006,-500.0,0.00016097,2]
[401458907,1768239039015,-500.0,0.00016097,2]
[401458908,1768239039025,-500.0,0.00016097,2]
[401458909,1768239039035,-500.0,0.00016097,2]
[401458910,1768239039044,-604.41169523,0.00016098,2]
[401458911,1768239039054,-16872.10217032,0.00016122,2]
[401458912,1768239039065,-175.0,0.00016124,2]
[401458913,1768239039074,-213.12201918,0.0001614,2]
[401458914,1768239039084,-273.92712949,0.00016148,2]
[401458915,1768239039094,-1000.0,0.00016184,2]
[401458916,1768239039106,-150.0,0.000162,2]
[401458917,1768239039116,-150.0,0.000162,2]
[401458918,1768239039126,-150.0,0.000162,2]
[401458919,1768239039137,-150.0,0.000162,2]
[401458920,1768239039147,-150.0,0.000162,2]
[401458921,1768239039156,-150.0,0.000162,2]
[401458922,1768239039165,-150.0,0.000162,2]
[401458923,1768239039175,-150.0,0.000162,2]
[401458924,1768239039184,-150.0,0.000162,2]
[401458925,1768239039194,-150.0,0.000162,2]
[401458926,1768239039204,-150.0,0.000162,2]
[401458927,1768239039213,-5000.00471967,0.000162,5]
[401458928,1768239039223,-150.0,0.0001623,2]
[401458929,1768239039232,-150.0,0.00016235,2]
[401458930,1768239039242,-150.0,0.00016243,2]
[401458931,1768239039251,-150.0,0.00016251,2]
[401458932,1768239039260,-150.0,0.00016251,2]
[401458933,1768239039270,-150.0,0.00016259,2]
[401458934,1768239039279,-150.0,0.00016269,2]
[401458935,1768239039288,-8338.68733204,0.00016283,2]
[401458936,1768239039298,-150.0,0.00016286,2]
[401458937,1768239039307,-150.0,0.00016289,2]
[401458938,1768239039317,-1000.0,0.00016296,2]
[401458939,1768239039326,-150.0,0.00016303,2]
[401458940,1768239039335,-150.0,0.00016303,2]
[401458941,1768239039346,-150.0,0.00016304,2]
[401458942,1768239039356,-150.0,0.00016306,2]
[401458943,1768239039366,-150.0,0.00016318,2]
[401458944,1768239039375,-150.0,0.00016329,2]
[401458945,1768239039384,-166.66,0.00016333,2]
[401458946,1768239039395,-150.0,0.00016338,2]
[401458947,1768239039404,-16872.10217032,0.00016344,2]
[401458949,1768239039414,-150.0,0.00016348,2]
[401458950,1768239039424,-150.0,0.00016354,2]
[401458952,1768239039434,-150.0,0.00016354,2]
[401458954,1768239039444,-150.0,0.00016364,2]
[401458955,1768239039455,-150.0,0.00016371,2]
[401458956,1768239039465,-150.0,0.00016373,2]
[401458957,1768239039474,-150.0,0.00016377,2]
[401458958,1768239039484,-604.41169523,0.00016399,2]
[401458959,1768239039493,-162.0,0.000164,2]
[401458960,1768239039503,-1000.0,0.00016401,2]
[401458961,1768239039513,-150.0,0.00016406,2]
[401458962,1768239039524,-150.0,0.00016406,2]
[401458963,1768239039533,-150.0,0.00016407,2]
[401458964,1768239039543,-150.0,0.00016408,2]
[401458965,1768239039553,-150.0,0.00016412,2]
[401458966,1768239039563,-150.0,0.00016414,2]
[401458967,1768239039572,-420.0,0.00016416,2]
[401458968,1768239039584,-150.0,0.00016436,2]
[401458969,1768239039594,-553.74,0.00016438,2]
[401458970,1768239039603,-553.74,0.00016438,2]
[401458971,1768239039613,-553.74,0.00016438,2]
[401458972,1768239039625,-553.74,0.00016438,2]
[401458974,1768239039635,-553.74,0.00016438,2]
[401458975,1768239039646,-600.0,0.00016438,2]
[401458976,1768239039658,-654.31,0.00016438,2]
[401458977,1768239039668,-151.0,0.00016438,2]
[401458978,1768239039678,-150.0,0.00016442,2]
[401458979,1768239039689,-150.0,0.00016457,2]
[401458980,1768239039699,-150.0,0.00016457,2]
[401458981,1768239039710,-150.0,0.00016457,2]
[401458982,1768239039720,-150.0,0.00016466,2]
[401458983,1768239039731,-150.0,0.00016477,2]
[401458984,1768239039740,-1000.0,0.00016495,2]
[401458985,1768239039749,-150.0,0.00016495,2]
[401458986,1768239039759,-273.92712949,0.00016499,2]
[401458987,1768239039769,-195.0,0.00016499,2]
[401458988,1768239039779,-1936.99946493,0.00016499,2]
[401458989,1768239039788,-1680.0,0.00016499,2]
[401458990,1768239039797,-150.0,0.000165,2]
[401458991,1768239039807,-150.0,0.000165,2]
[401458992,1768239039816,-150.0,0.000165,2]
[401458993,1768239039826,-2500.0,0.000165,2]
[401458994,1768239039836,-600.0,0.000165,2]
[401458995,1768239039848,-150.0,0.00016509,2]
[401458996,1768239039858,-150.0,0.00016509,2]
[401458997,1768239039868,-150.0,0.00016512,2]
[401458998,1768239039879,-1000.0,0.00016513,2]
[401458999,1768239039889,-150.0,0.00016518,2]
[401459000,1768239039899,-1000.0,0.00016522,2]
[401459001,1768239039909,-150.0,0.00016525,2]
[401459002,1768239039918,-150.0,0.00016527,2]
[401459003,1768239039927,-150.0,0.00016543,2]
[401459004,1768239039936,-150.0,0.00016546,2]
[401459005,1768239039946,-8338.68733204,0.00016553,2]
[401459006,1768239039955,-150.0,0.00016554,2]
[401459007,1768239039965,-150.0,0.0001656,2]
[401459008,1768239039975,-150.0,0.0001656,2]
[401459009,1768239039985,-16872.10217032,0.00016567,2]
[401459010,1768239039994,-150.0,0.00016581,2]
[401459011,1768239040004,-150.0,0.00016584,2]
[401459012,1768239040013,-150.0,0.00016586,2]
[401459013,1768239040023,-150.0,0.00016611,2]
[401459014,1768239040034,-150.0,0.00016611,2]
[401459015,1768239040043,-1000.0,0.00016612,2]
[401459016,1768239040052,-150.0,0.00016613,2]
[401459017,1768239040062,-150.0,0.00016615,2]
[401459018,1768239040071,-150.0,0.00016624,2]
[401459019,1768239040082,-150.0,0.00016629,2]
[401459020,1768239040091,-150.0,0.00016643,2]
[401459021,1768239040107,-150.0,0.0001665,2]
[401459022,1768239040116,-150.0,0.0001665,2]
[401459023,1768239040126,-150.0,0.00016663,2]
[401459024,1768239040135,-150.0,0.00016663,2]
[401459025,1768239040145,-166.66,0.00016663,2]
[401459026,1768239040155,-150.0,0.00016671,2]
[401459027,1768239040165,-150.0,0.00016672,2]
[401459028,1768239040175,-202.96,0.00016684,2]
[401459029,1768239040184,-150.0,0.00016685,2]
[401459030,1768239040193,-150.0,0.00016691,2]
[401459031,1768239040203,-604.41169523,0.00016699,2]
[401459032,1768239040214,-150.0,0.00016702,2]
[401459033,1768239040223,-150.0,0.00016714,2]
[401459034,1768239040233,-150.0,0.00016714,2]
[401459035,1768239040243,-150.0,0.00016714,2]
[401459036,1768239040252,-150.0,0.00016719,2]
[401459037,1768239040262,-150.0,0.00016729,2]
[401459038,1768239040271,-150.0,0.00016731,2]
[401459039,1768239040281,-150.0,0.00016754,2]
[401459040,1768239040290,-150.0,0.00016757,2]
[401459041,1768239040300,-150.0,0.00016761,2]
[401459042,1768239040310,-150.0,0.00016766,2]
[401459043,1768239040319,-150.0,0.00016766,2]
[401459044,1768239040329,-150.0,0.00016788,2]
[401459045,1768239040338,-16872.10217032,0.00016789,2]
[401459046,1768239040349,-150.0,0.0001679,2]
[401459047,1768239040359,-150.0,0.000168,2]
[401459048,1768239040368,-150.0,0.000168,2]
[401459049,1768239040377,-150.0,0.000168,2]
[401459050,1768239040387,-150.0,0.000168,2]
[401459051,1768239040396,-150.0,0.00016817,2]
[401459052,1768239040406,-150.0,0.00016817,2]
[401459053,1768239040415,-150.0,0.0001682,2]
[401459054,1768239040425,-8338.68733204,0.00016822,2]
[401459055,1768239040435,-150.0,0.00016823,2]
[401459056,1768239040444,-150.0,0.00016835,2]